{"text_format":"1","workbook":"xlsx","n_sheets":2,"sheets":["Per Diem","Source"],"not_rendered":{"charts":0,"images":94,"macros":1,"external_links":0,"defined_names":2,"comments":0,"pivot_tables":0},"unopened":[],"bounds":{"document_bytes":16777216,"sheet_cells":100000,"rows_first":2000,"rows_last":500,"rows_between":2000,"halvings":0,"cell_chars":16384,"cell_head_chars":4096},"cells_cut":0,"cells_raw":0,"read":"whole","date_system":"1900"}

{"sheet":"Per Diem","index":0,"n_rows":46,"n_cols":11,"rows_kept":46,"cut":false,"hidden":false,"merged":[[45,2,45,4],[45,5,45,6],[45,7,45,9],[3,4,3,5],[9,8,9,9],[10,8,10,9],[9,4,10,7],[29,4,29,9],[35,4,35,9],[42,0,42,7],[42,8,42,9],[39,4,39,9],[40,4,40,9],[41,4,41,9],[30,4,30,9],[31,4,31,9],[32,4,32,9],[33,4,33,9],[24,4,24,9],[25,4,25,9],[26,4,26,9],[27,4,27,9],[28,4,28,9],[3,9,3,10],[7,9,7,10],[7,6,7,7],[16,4,16,9],[17,4,17,9],[11,4,11,9],[13,4,13,9],[14,4,14,9],[15,4,15,9],[5,9,5,10],[12,4,12,9],[23,4,23,9],[18,4,18,9],[19,4,19,9],[20,4,20,9],[21,4,21,9],[22,4,22,9],[34,4,34,9],[38,4,38,9],[45,0,45,1],[43,6,43,7],[1,6,1,8],[9,0,10,0],[9,3,10,3],[7,1,7,3],[9,1,10,1],[9,2,10,2],[0,0,1,5],[3,1,3,3],[5,1,5,7],[36,4,36,9],[37,4,37,9],[3,6,3,7]]}
["                                          KALITTA AIR, LLC.",null,null,null,null,null,"Email: REIMBURSEMENTS@kalittaair.com"]
[null,null,null,null,null,null,"Select Department"]
[]
["NAME:",null,null,null,"REASON FOR TRAVEL:",null,null,null,"EMP NBR:"]
[]
["ADDRESS",null,null,null,null,null,null,null,"DATE SUB:",{"$f":"TODAY()","v":"2024-02-28"}]
[]
["CITY:",null,null,null,null,"STATE/ZIP:",null,null,"DATE REC:"]
[]
["DAY","DATE","A/C #","ROUTE  OR DUTIES","Per Diem Type",null,null,null,"Domestic",null,63.6]
[null,null,null,null,null,null,null,null,"International",null,85.2]
["2023-01-01",{"$f":"LEFT(UPPER(TEXT(A12,\"dddd\")),4)","v":"SUND"},null,null,null,null,null,null,null,null,0]
[{"$f":"A12+1","v":"2023-01-02"},{"$f":"LEFT(UPPER(TEXT(A13,\"dddd\")),4)","v":"MOND"},null,null,null,null,null,null,null,null,0]
["2023-01-03","TUES",null,null,null,null,null,null,null,null,0]
["2023-01-04","WEDN",null,null,null,null,null,null,null,null,0]
["2023-01-05","THUR",null,null,null,null,null,null,null,null,0]
["2023-01-06","FRID",null,null,null,null,null,null,null,null,0]
["2023-01-07","SATU",null,null,null,null,null,null,null,null,0]
["2023-01-08","SUND",null,null,null,null,null,null,null,null,0]
["2023-01-09","MOND",null,null,null,null,null,null,null,null,0]
["2023-01-10","TUES",null,null,null,null,null,null,null,null,0]
["2023-01-11","WEDN",null,null,null,null,null,null,null,null,0]
["2023-01-12","THUR",null,null,null,null,null,null,null,null,0]
["2023-01-13","FRID",null,null,null,null,null,null,null,null,0]
["2023-01-14","SATU",null,null,null,null,null,null,null,null,0]
["2023-01-15","SUND",null,null,null,null,null,null,null,null,0]
["2023-01-16","MOND",null,null,null,null,null,null,null,null,0]
["2023-01-17","TUES",null,null,null,null,null,null,null,null,0]
["2023-01-18","WEDN",null,null,null,null,null,null,null,null,0]
["2023-01-19","THUR",null,null,null,null,null,null,null,null,0]
["2023-01-20","FRID",null,null,null,null,null,null,null,null,0]
["2023-01-21","SATU",null,null,null,null,null,null,null,null,0]
["2023-01-22","SUND",null,null,null,null,null,null,null,null,0]
["2023-01-23","MOND",null,null,null,null,null,null,null,null,0]
["2023-01-24","TUES",null,null,null,null,null,null,null,null,0]
["2023-01-25","WEDN",null,null,null,null,null,null,null,null,0]
["2023-01-26","THUR",null,null,null,null,null,null,null,null,0]
["2023-01-27","FRID",null,null,null,null,null,null,null,null,0]
["2023-01-28","SATU",null,null,null,null,null,null,null,null,0]
["2023-01-29","SUND",null,null,null,null,null,null,null,null,0]
["2023-01-30","MOND",null,null,null,null,null,null,null,null,0]
["2023-01-31","TUES",null,null,null,null,null,null,null,null,0]
["MISCELLANEOUS EXPENSES (ie. Laundry, Uniform Pants, Tolls etc.)",null,null,null,null,null,null,null,"SUBTOTAL",null,{"$f":"SUM(K12:K42)","v":0}]
["REV:02/24"]
[]
["SUBMITTED BY:",null,null,null,null,"APPROVED BY:"]

{"sheet":"Source","index":1,"n_rows":88,"n_cols":1,"rows_kept":88,"cut":false,"hidden":true,"merged":[]}
["Select Department"]
["A/C 747-400s"]
["A/C 747-Classics"]
["A/C 767s"]
["A/C Records"]
["Accounting"]
["Administration"]
["Airplanes Inc CF6 Shop"]
["Airplanes Inc Test Cell"]
["ANC Station"]
["APC Test Cell"]
["Aviation Personnel"]
["Calibration OSC"]
["Cargo Services"]
["CAS-Reliability"]
["CF6 Engine Shop"]
["Crew Management"]
["Crew Management Union"]
["Crew Records"]
["Crew Scheduling"]
["CVG Station"]
["DFW Station"]
["DPM Consulting"]
["Executive"]
["FAA"]
["Flight Crew 400s"]
["Flight Crew 767s"]
["Flight Crew Classics"]
["Flight Following"]
["Flight Mtx Engineer"]
["Flight Ops Support"]
["GE Test Cell"]
["HNL Station"]
["Human Resources"]
["IAS"]
["Information Technology/MIS"]
["JFK Station"]
["KTL"]
["LAX Station"]
["Loadmasters"]
["Mail Projects"]
["Maintenance Control"]
["Materials"]
["MIS_XXX_Empl"]
["MTX Training Dept"]
["NAE"]
["NDT-OSC"]
["Nutech"]
["OCC"]
["OCC Management"]
["Operating Expenses"]
["Operations-Contract"]
["Ops Tech Pubs"]
["OSC Avionics"]
["OSC Facilities"]
["OSC Ground Support"]
["OSC Hanger Maintenance"]
["OSC Materials"]
["OSC QC CF6 Engine Shop"]
["OSC QC Hangar"]
["OSC QC JT9D Engine Shop"]
["Osc-JT9D Engine Shop"]
["OSC-MX-APC"]
["OSC-SRM Sheet Metal"]
["OSC-STS-JT9"]
["OSC-STS-MTX"]
["Oscoda Admin"]
["Other"]
["Planetech"]
["PMA Division"]
["QC Publications"]
["QC Records"]
["Safety"]
["Safety Union"]
["Sales"]
["Simulator"]
["STS-CF6 Test Cell WFS"]
["STS-CF6 WFS"]
["STS-WFS JT9"]
["STS-Work Force Solutions"]
["STS-YIP"]
["Technical Publications"]
["Tire Shop"]
["Training"]
["Training-Union"]
["YIP Facilities"]
["YIP Maintenance"]
["YIP Quality Assurance"]